bitfinex/quotes_SOLUSD_20250101
["timestamp","ask_amount","ask_price","bid_price","bid_amount"]
[1735745238153,3.632,190.96,190.88,10.58411353]
[1735745241157,3.632,190.96,190.87,10.58411353]
[1735745242462,3.632,190.96,190.87,23.776884]
[1735745242626,3.632,190.96,190.85,23.776884]
[1735745242627,3.632,190.96,190.85,10.58411353]
[1735745243366,3.632,190.96,190.83,13.1]
[1735745243367,3.632,190.96,190.87,10.58411353]
[1735745243610,3.632,190.96,190.87,34.36099753]
[1735745244859,3.632,190.96,190.87,23.776884]
[1735745247278,3.632,190.96,190.87,34.36099753]
[1735745247980,3.632,190.96,190.86,30.58411353]
[1735745248548,3.632,190.96,190.83,13.1]
[1735745248881,3.632,190.96,190.8,13.1025]
[1735745248882,21.5053,190.93,190.8,13.1025]
[1735745249175,21.5053,190.93,190.82,20.0]
[1735745249380,21.5053,190.93,190.81,23.776884]
[1735745249682,21.5053,190.93,190.81,34.36099753]
[1735745249855,21.5053,190.93,190.82,1.57039854]
[1735745250558,21.5053,190.93,190.8,10.58411353]
[1735745250746,1.3,190.92,190.77,14.6235]
[1735745250943,1.3,190.92,190.8,10.58411353]
[1735745251345,1.3,190.89,190.74,19.1682]
[1735745251639,20.0,190.87,190.72,1.5188]
[1735745251866,20.0,190.85,190.74,10.58411353]
[1735745252071,8.8625,190.86,190.73,10.58411353]
[1735745252395,8.8625,190.86,190.74,25.34948008]
[1735745252959,8.8625,190.86,190.74,1.57259608]
[1735745252960,20.0,190.83,190.74,1.57259608]
[1735745253278,1.5053,190.8,190.74,1.57259608]
[1735745253449,1.5053,190.8,190.7,23.776884]
[1735745253661,26.0572,190.79,190.64,8.19391966]
[1735745253852,26.0572,190.79,190.68,10.58411353]
[1735745254058,26.0572,190.79,190.64,8.19391966]
[1735745254059,26.0572,190.79,190.69,10.58411353]
[1735745254261,26.0572,190.79,190.7,10.58411353]
[1735745254467,26.0572,190.79,190.65,37.67631648]
[1735745254468,26.0572,190.79,190.69,10.58411353]
[1735745255260,26.0572,190.79,190.68,34.36099753]
[1735745255770,27.3572,190.79,190.67,10.58411353]
[1735745255984,1.3,190.78,190.66,10.58411353]
[1735745256187,1.3,190.78,190.64,20.0]
[1735745256354,1.3,190.78,190.67,10.58411353]
[1735745260275,1.3,190.78,190.7,10.58411353]
[1735745260502,26.0572,190.79,190.71,10.58411353]
[1735745263208,26.0572,190.79,190.7,10.58411353]
[1735745264393,6.0572,190.79,190.72,10.58411353]
[1735745264594,1.5053,190.8,190.72,10.58411353]
[1735745265109,21.5053,190.8,190.7,30.58411353]
[1735745266311,21.5053,190.8,190.71,10.58411353]
[1735745274911,21.5053,190.8,190.7,30.58411353]
[1735745275108,21.5053,190.8,190.71,23.776884]
[1735745275489,21.5053,190.8,190.7,20.0]
[1735745277121,20.0,190.78,190.61,6.0615]
[1735745277440,6.0143,190.77,190.64,23.69761353]
[1735745277597,6.0143,190.77,190.68,20.0]
[1735745277794,6.0143,190.77,190.69,23.776884]
[1735745278510,6.0143,190.77,190.68,20.0]
[1735745280113,6.0143,190.77,190.67,30.58411353]
[1735745280623,6.0143,190.77,190.69,10.58411353]
[1735745281835,6.0143,190.77,190.7,23.776884]
[1735745282813,6.0143,190.77,190.7,34.36099753]
[1735745283017,1.5053,190.8,190.76,10.58411353]
[1735745283223,1.5053,190.8,190.75,10.58411353]
[1735745283399,1.5053,190.8,190.74,10.58411353]
[1735745289534,1.5053,190.8,190.74,23.776884]
[1735745290852,1.5053,190.8,190.74,10.58411353]
[1735745291041,1.5053,190.8,190.72,10.58411353]
[1735745291234,1.5053,190.8,190.66,0.7862348]
[1735745291437,1.5053,190.8,190.7,34.36099753]
[1735745291848,1.5053,190.8,190.71,10.58411353]
[1735745292053,1.5053,190.8,190.71,30.58411353]
[1735745292770,1.5053,190.8,190.71,20.0]
[1735745293132,1.5053,190.8,190.71,30.58411353]
[1735745293336,1.5053,190.8,190.72,1.57323181]
[1735745293843,1.5053,190.8,190.73,1.57323181]
[1735745294345,20.0,190.78,190.73,1.57323181]
[1735745294559,20.0,190.78,190.68,34.36099753]
[1735745294950,20.0,190.78,190.69,10.58411353]
[1735745295352,20.0,190.78,190.7,1.57642646]
[1735745295965,20.0,190.78,190.69,10.58411353]
[1735745295966,20.0,190.78,190.71,1.57642646]
[1735745296161,1.5053,190.8,190.71,1.57642646]
[1735745296878,1.5053,190.8,190.72,1.57642646]
[1735745297370,1.5053,190.8,190.73,1.57642646]
[1735745298275,1.5053,190.8,190.71,10.58411353]
[1735745298784,1.5053,190.8,190.72,1.57797215]
[1735745299498,1.5053,190.8,190.73,1.57797215]
[1735745300161,1.5053,190.8,190.74,1.57797215]
[1735745300768,1.5053,190.8,190.72,10.58411353]
[1735745301464,1.5053,190.8,190.73,1.5796759]
[1735745301984,1.5053,190.8,190.74,1.5796759]
[1735745302480,1.5053,190.8,190.71,20.0]
[1735745302668,1.5053,190.8,190.72,23.776884]
[1735745303177,1.5053,190.8,190.73,1.57998032]
[1735745303798,1.5053,190.8,190.74,1.57998032]
[1735745304807,1.5053,190.8,190.71,20.0]
[1735745305306,1.5053,190.8,190.72,1.58005903]
[1735745306006,1.5053,190.8,190.73,1.58005903]
[1735745306810,1.5053,190.8,190.74,1.58005903]
[1735745307522,1.5053,190.8,190.71,30.58411353]
[1735745308409,1.5053,190.8,190.72,1.58041893]
[1735745309286,1.5053,190.8,190.73,1.58041893]
[1735745309991,1.5053,190.8,190.74,1.58041893]
[1735745310678,1.5053,190.8,190.71,30.58411353]
[1735745311085,1.3,190.83,190.75,10.58411353]
[1735745311402,1.5556,190.85,190.76,12.16404287]
[1735745311793,1.5556,190.85,190.77,34.36099753]
[1735745312016,1.5556,190.85,190.78,10.58411353]
[1735745312214,1.5556,190.85,190.78,12.16404287]
[1735745312899,1.5556,190.85,190.79,1.57992934]
[1735745313414,1.5556,190.85,190.8,1.57992934]
[1735745314197,1.5556,190.85,190.77,34.36099753]
[1735745314827,1.5556,190.85,190.78,1.57679084]
[1735745315531,1.5556,190.85,190.79,1.57679084]
[1735745316107,1.5556,190.85,190.76,10.58411353]
[1735745316108,1.5556,190.85,190.76,43.776884]
[1735745316830,1.5556,190.85,190.76,54.36099753]
[1735745317208,1.5556,190.85,190.77,1.57598625]
[1735745317421,1.5556,190.85,190.77,12.16009978]
[1735745317608,1.5556,190.85,190.77,1.57598625]
[1735745318107,1.5556,190.85,190.78,1.57598625]
[1735745318850,1.5556,190.85,190.79,1.57598625]
[1735745319425,1.5556,190.85,190.77,10.58411353]
[1735745319628,1.5556,190.85,190.77,23.776884]
[1735745320243,1.5556,190.85,190.78,1.57437917]
[1735745320763,1.5556,190.85,190.77,23.776884]
[1735745321662,1.5556,190.85,190.78,1.57373121]
[1735745322446,1.5556,190.85,190.77,23.776884]
[1735745323641,1.5556,190.85,190.78,1.57420167]
[1735745324160,1.5556,190.85,190.78,10.58411353]
[1735745324827,20.0,190.88,190.79,23.776884]
[1735745325032,20.0,190.88,190.79,35.93511864]
[1735745325253,2.844,190.9,190.79,35.93511864]
[1735745325454,2.844,190.9,190.79,34.36099753]
[1735745325669,2.844,190.9,190.79,23.776884]
[1735745326030,20.0,190.88,190.79,23.776884]
[1735745328434,20.0,190.88,190.77,10.58411353]
[1735745329155,20.0,190.88,190.78,23.776884]
[1735745329530,20.0,190.88,190.79,1.57357058]
[1735745330259,20.0,190.88,190.78,34.36099753]
[1735745331062,20.0,190.88,190.77,34.36099753]
[1735745332061,20.0,190.88,190.78,1.57307057]
[1735745332734,20.0,190.88,190.79,1.57307057]
[1735745333547,20.0,190.88,190.78,10.58411353]
[1735745333873,20.0,190.88,190.79,10.58411353]
[1735745334249,1.544,190.9,190.79,10.58411353]
[1735745335782,1.544,190.9,190.8,23.776884]
[1735745337981,1.544,190.9,190.8,34.36099753]
[1735745338184,1.544,190.9,190.81,34.36099753]
[1735745339282,1.544,190.9,190.82,1.57143748]
[1735745339878,1.544,190.9,190.81,34.36099753]
[1735745340479,1.544,190.9,190.8,10.58411353]
[1735745341349,1.544,190.9,190.81,1.57041806]
[1735745342258,1.544,190.9,190.8,10.58411353]
[1735745343393,1.544,190.9,190.79,34.36099753]
[1735745343760,1.544,190.9,190.79,23.776884]
[1735745343962,1.544,190.9,190.77,1.6204]
[1735745344165,20.0,190.88,190.77,10.58411353]
[1735745344593,20.0,190.88,190.78,1.57182752]
[1735745345180,20.0,190.88,190.79,1.57182752]
[1735745345815,20.0,190.88,190.8,1.57182752]
[1735745346516,20.0,190.88,190.79,10.58411353]
[1735745346697,2.844,190.9,190.8,10.58411353]
[1735745349486,1.544,190.9,190.8,10.58411353]
[1735745350193,1.544,190.9,190.81,10.58411353]
[1735745350394,1.544,190.9,190.82,23.776884]
[1735745352412,0.044,190.9,190.82,23.776884]
[1735745353303,0.044,190.9,190.8,23.776884]
[1735745353504,0.044,190.9,190.8,34.36099753]
[1735745353899,0.044,190.9,190.82,23.776884]
[1735745354604,0.044,190.9,190.81,23.776884]
[1735745355406,0.044,190.9,190.82,1.57363436]
[1735745356187,0.044,190.9,190.83,1.57363436]
[1735745356703,0.044,190.9,190.8,23.776884]
[1735745357405,0.044,190.9,190.81,1.57464647]
[1735745357905,0.044,190.9,190.82,1.57464647]
[1735745358718,0.044,190.9,190.83,1.57464647]
[1735745359306,20.0,190.88,190.83,1.57464647]
[1735745359604,20.0,190.88,190.77,10.58411353]
[1735745360512,20.0,190.88,190.78,1.57467507]
[1735745360805,20.0,190.88,190.79,1.57467507]
[1735745361399,20.0,190.88,190.8,1.57467507]
[1735745362107,20.0,190.88,190.81,1.57467507]
[1735745362806,20.0,190.88,190.82,1.57467507]
[1735745363410,20.0,190.88,190.83,1.57467507]
[1735745364208,20.0,190.88,190.78,34.36099753]
[1735745364798,0.044,190.9,190.83,23.776884]
[1735745365206,0.044,190.9,190.83,34.36099753]
[1735745365507,0.044,190.9,190.82,23.776884]
[1735745365713,0.044,190.9,190.84,1.57580128]
[1735745366403,0.044,190.9,190.85,1.57580128]
[1735745367189,0.044,190.9,190.8,34.36099753]
[1735745368011,0.044,190.9,190.82,23.776884]
[1735745368591,20.0,190.88,190.83,1.57628394]
[1735745369088,0.044,190.9,190.83,1.57628394]
[1735745369287,0.044,190.9,190.84,1.57628394]
[1735745370325,0.044,190.9,190.8,23.776884]
[1735745370916,0.044,190.9,190.81,1.57680705]
[1735745371590,0.044,190.9,190.82,1.57680705]
[1735745372114,0.044,190.9,190.83,1.57680705]
[1735745372991,0.044,190.9,190.84,1.57680705]
[1735745373799,0.044,190.9,190.8,34.36099753]
[1735745374207,0.044,190.9,190.82,23.776884]
[1735745375525,0.044,190.9,190.84,23.776884]
[1735745375906,0.044,190.9,190.82,23.776884]
[1735745377127,0.044,190.9,190.84,23.776884]
[1735745377700,0.044,190.9,190.82,23.776884]
[1735745378027,0.044,190.9,190.82,34.36099753]
[1735745379035,0.044,190.9,190.82,23.776884]
[1735745379240,0.044,190.9,190.82,20.0]
[1735745379531,0.044,190.9,190.83,1.57691943]
[1735745380344,0.044,190.9,190.84,1.57691943]
[1735745381130,0.044,190.9,190.82,20.0]
[1735745381831,0.044,190.9,190.83,1.57722655]
[1735745382649,0.044,190.9,190.84,25.35411055]
[1735745383321,0.044,190.9,190.85,1.57722655]
[1735745383929,6.2996,190.91,190.83,23.776884]
[1735745384827,6.2996,190.91,190.84,1.57738429]
[1735745385442,6.2996,190.91,190.85,1.57738429]
[1735745385823,3.4118,190.94,190.85,1.57738429]
[1735745386144,3.4118,190.94,190.83,23.776884]
[1735745387043,3.4118,190.94,190.84,1.57737121]
[1735745387542,3.4118,190.94,190.85,1.57737121]
[1735745388235,3.4118,190.94,190.83,23.776884]
[1735745389048,1.3,190.93,190.84,1.5771279]
[1735745389340,1.3,190.93,190.85,1.5771279]
[1735745389941,1.3,190.93,190.83,20.0]
[1735745390536,1.3,190.93,190.84,1.5769284]
[1735745391036,1.3,190.93,190.85,1.5769284]
[1735745391214,22.6188,190.92,190.85,1.5769284]
[1735745391735,23.9188,190.92,190.79,23.776884]
[1735745391931,20.0,190.91,190.79,23.776884]
[1735745392647,20.0,190.91,190.8,1.57766979]
[1735745393249,20.0,190.91,190.81,1.57766979]
[1735745394055,20.0,190.91,190.82,1.57766979]
[1735745394760,20.0,190.91,190.83,1.57766979]
[1735745395232,20.0,190.91,190.79,23.776884]
[1735745395432,20.0,190.91,190.79,34.36099753]
[1735745396364,20.0,190.91,190.8,1.57519615]
[1735745397046,20.0,190.91,190.81,1.57519615]
[1735745397734,20.0,190.91,190.82,1.57519615]
[1735745398566,20.0,190.91,190.83,1.57519615]
[1735745399234,20.0,190.91,190.79,34.36099753]
[1735745399773,20.0,190.91,190.79,23.776884]
[1735745399938,20.0,190.91,190.8,1.57514461]
[1735745400261,2.6188,190.92,190.8,1.57514461]
[1735745400466,20.0,190.91,190.8,1.57514461]
[1735745400757,20.0,190.91,190.81,1.57514461]
[1735745401468,20.0,190.91,190.82,1.57514461]
[1735745401469,1.3,190.89,190.82,1.57514461]
[1735745402136,1.3,190.88,190.75,8.19391966]
[1735745402557,20.0,190.86,190.76,23.776884]
[1735745402761,20.0,190.86,190.76,1.57482513]
[1735745403240,20.0,190.86,190.77,1.57482513]
[1735745403846,20.0,190.86,190.75,23.776884]
[1735745404046,20.0,190.86,190.75,34.36099753]
[1735745404252,2.6195,190.87,190.75,34.36099753]
[1735745404569,21.3,190.88,190.78,23.776884]
[1735745404771,21.3,190.88,190.78,10.58411353]
[1735745406063,21.3,190.88,190.78,23.776884]
[1735745406438,20.0,190.88,190.78,10.58411353]
[1735745407358,20.0,190.88,190.77,10.58411353]
[1735745407538,20.0,190.88,190.78,23.776884]
[1735745407734,20.0,190.88,190.78,25.34926782]
[1735745408350,20.0,190.88,190.76,10.58411353]
[1735745408766,20.0,190.88,190.78,23.776884]
[1735745409715,7.0721,190.9,190.82,23.776884]
[1735745409898,0.7931,190.9,190.82,34.36099753]
[1735745411624,0.7931,190.9,190.82,23.776884]
[1735745411792,0.7931,190.9,190.82,20.0]
[1735745412193,0.7931,190.9,190.83,20.0]
[1735745412709,0.7931,190.9,190.8,34.36099753]
[1735745412910,0.7931,190.9,190.8,23.776884]
[1735745413107,6.2294,190.89,190.75,13.89182663]
[1735745413429,6.2294,190.89,190.78,10.58411353]
[1735745413832,6.2294,190.89,190.79,23.776884]
[1735745414424,6.2294,190.89,190.8,1.57154138]
[1735745414795,6.2294,190.89,190.76,23.776884]
[1735745415019,20.0,190.86,190.74,1.5356]
[1735745415330,20.7931,190.85,190.72,10.58411353]
[1735745415534,20.7931,190.85,190.75,1.57213546]
[1735745416030,20.7931,190.85,190.76,1.57213546]
[1735745416204,1.3,190.84,190.76,1.57213546]
[1735745416525,1.3,190.84,190.73,23.776884]
[1735745417302,20.0,190.83,190.74,1.57192477]
[1735745418032,20.0,190.83,190.72,34.36099753]
[1735745418440,20.0,190.83,190.73,1.57179693]
[1735745418729,1.3,190.84,190.73,1.57179693]
[1735745419138,1.3,190.84,190.72,34.36099753]
[1735745419326,20.0,190.83,190.72,34.36099753]
[1735745419653,6.2294,190.82,190.7,10.58411353]
[1735745420339,6.2294,190.82,190.71,34.36099753]
[1735745420719,6.2294,190.82,190.71,35.93062138]
[1735745421244,6.2294,190.82,190.72,1.56962385]
[1735745422142,6.2294,190.82,190.71,34.36099753]
[1735745423440,6.2294,190.82,190.72,1.56876561]
[1735745423964,6.2294,190.82,190.71,34.36099753]
[1735745424643,7.5294,190.82,190.72,20.0]
[1735745429823,0.7931,190.78,190.65,2.35379563]
[1735745430328,0.7931,190.78,190.66,1.56626195]
[1735745430528,0.7931,190.78,190.67,23.776884]
[1735745430728,20.0,190.77,190.66,1.56626195]
[1735745431367,20.0,190.77,190.66,23.776884]
[1735745431657,0.7931,190.78,190.62,10.58411353]
[1735745431658,20.0,190.73,190.62,10.58411353]
[1735745431826,20.0,190.73,190.63,23.776884]
[1735745432265,20.0,190.73,190.63,25.34298537]
[1735745432432,20.0,190.73,190.63,1.56610137]
[1735745432938,0.7931,190.72,190.61,1.5674]
[1735745433744,20.0,190.71,190.6,10.58411353]
[1735745434242,20.0,190.71,190.6,23.776884]
[1735745434570,20.0,190.71,190.6,34.36099753]
[1735745434870,20.0,190.71,190.59,6.16]
[1735745434871,20.0,190.71,190.59,34.36099753]
[1735745435036,20.0,190.71,190.59,23.776884]
[1735745435365,21.3,190.71,190.59,23.776884]
[1735745435563,21.3,190.71,190.59,10.58411353]
[1735745435851,21.3,190.71,190.6,10.58411353]
[1735745437155,0.7931,190.72,190.62,34.36099753]
[1735745437331,0.7931,190.72,190.64,10.58411353]
[1735745440361,7.3014,190.76,190.66,34.36099753]
[1735745441038,7.3014,190.76,190.68,23.776884]
[1735745441366,7.3014,190.76,190.67,23.776884]
[1735745442359,7.3014,190.76,190.64,10.58411353]
[1735745442565,7.3014,190.76,190.65,23.776884]
[1735745442767,7.3014,190.76,190.65,34.36099753]
[1735745442930,7.3014,190.76,190.66,10.58411353]
[1735745443126,7.3014,190.76,190.67,23.776884]
[1735745443342,7.3014,190.76,190.67,34.36099753]
[1735745445957,7.3014,190.76,190.69,34.36099753]
[1735745446262,6.9129,190.81,190.73,34.36099753]
[1735745447744,6.9129,190.81,190.73,23.776884]
[1735745450371,6.9129,190.81,190.74,23.776884]
[1735745450874,6.9129,190.81,190.73,10.58411353]
[1735745451568,6.9129,190.81,190.73,34.36099753]
[1735745452258,6.9129,190.81,190.74,23.776884]
[1735745452443,6.9129,190.81,190.74,34.36099753]
[1735745452444,0.7931,190.81,190.74,34.36099753]
[1735745453180,6.9129,190.85,190.76,34.36099753]
[1735745453472,6.9129,190.85,190.76,23.776884]
[1735745455873,6.9129,190.85,190.78,23.776884]
[1735745456245,0.7931,190.85,190.78,34.36099753]
[1735745456474,0.7931,190.89,190.8,23.776884]
[1735745460671,0.7931,190.89,190.77,10.58411353]
[1735745460672,20.0,190.87,190.77,10.58411353]
[1735745461173,20.0,190.87,190.78,34.36099753]
[1735745462074,0.7931,190.89,190.8,23.776884]
[1735745462652,0.7931,190.89,190.8,10.58411353]
[1735745468288,0.7931,190.89,190.81,20.0]
[1735745468481,0.7931,190.89,190.77,12.15601353]
[1735745468964,0.7931,190.89,190.77,10.58411353]
[1735745472386,0.7931,190.89,190.79,10.58411353]
[1735745472587,0.7931,190.89,190.8,10.58411353]
[1735745473003,0.7931,190.89,190.81,23.776884]
[1735745473497,0.7931,190.89,190.8,20.0]
[1735745473670,0.7931,190.89,190.78,10.58411353]
[1735745474080,0.7931,190.89,190.79,23.776884]
[1735745475095,0.7931,190.89,190.8,10.58411353]
[1735745475696,0.7931,190.89,190.81,23.776884]
[1735745478001,0.7931,190.89,190.83,23.776884]
[1735745478306,0.7931,190.94,190.83,34.36099753]
[1735745478484,0.7931,190.94,190.85,23.776884]
[1735745479806,0.7931,190.94,190.83,10.58411353]
[1735745480315,0.7931,190.94,190.84,34.36099753]
[1735745480627,0.7931,190.94,190.86,23.776884]
[1735745480931,0.7931,190.94,190.84,34.36099753]
[1735745481284,0.7931,190.94,190.83,10.58411353]
[1735745481720,0.7931,190.94,190.84,23.776884]
[1735745482408,0.7931,190.94,190.82,10.58411353]
[1735745482617,0.7931,190.94,190.82,34.36099753]
[1735745483022,0.7931,190.94,190.82,23.776884]
[1735745483612,20.0,190.92,190.82,23.776884]
[1735745484830,26.3612,190.91,190.82,23.776884]
[1735745485004,0.7931,190.9,190.82,23.776884]
[1735745486310,0.7931,190.9,190.79,10.58411353]
[1735745486912,0.7931,190.9,190.8,23.776884]
[1735745487113,0.7931,190.9,190.8,34.36099753]
[1735745487833,0.7931,190.9,190.81,10.58411353]
[1735745488119,6.3612,190.91,190.84,23.776884]
[1735745488301,0.7931,190.94,190.84,34.36099753]
[1735745489124,0.7931,190.94,190.85,20.0]
[1735745489327,0.7931,190.94,190.86,23.776884]
[1735745489711,0.7931,190.94,190.85,23.776884]
[1735745490026,0.7931,190.94,190.86,23.776884]
[1735745490694,0.7931,190.94,190.85,10.58411353]
[1735745491114,0.7931,190.94,190.84,34.36099753]
[1735745492131,0.7931,190.94,190.85,1.56680044]
[1735745492631,0.7931,190.94,190.84,34.36099753]
[1735745492935,0.7931,190.94,190.86,23.776884]
[1735745493530,0.7931,190.94,190.86,10.58411353]
[1735745493723,0.7931,190.99,190.88,34.36099753]
[1735745494236,0.7931,190.99,190.89,1.56556398]
[1735745495118,0.7931,190.99,190.9,1.56556398]
[1735745495730,0.7931,190.99,190.88,34.36099753]
[1735745496431,0.7931,190.99,190.9,23.776884]
[1735745496647,0.7931,190.99,190.9,34.36099753]
[1735745499235,0.7931,190.99,190.9,23.776884]
[1735745499728,0.7931,190.99,190.9,10.58411353]
[1735745502126,0.7931,190.99,190.92,23.776884]
[1735745502622,0.7931,190.99,190.92,34.36099753]
[1735745502810,0.7931,190.99,190.92,10.58411353]
[1735745505532,0.7931,190.99,190.92,23.776884]
[1735745510408,0.7931,190.99,190.92,10.58411353]
[1735745510919,0.7931,190.99,190.92,23.776884]
[1735745511313,0.7931,190.99,190.92,10.58411353]
[1735745512538,0.7931,190.99,190.9,23.776884]
[1735745512727,0.7931,190.99,190.92,23.776884]
[1735745515840,0.7931,191.04,190.96,23.776884]
[1735745516012,0.7931,191.04,190.98,10.58411353]
[1735745517614,0.7931,191.04,190.97,10.58411353]
[1735745518017,0.7931,191.04,190.94,1.56135755]
[1735745518217,0.7931,191.04,190.93,10.58411353]
[1735745518542,0.7931,191.04,190.94,10.58411353]
[1735745521963,0.7931,191.04,190.95,23.776884]
[1735745524750,0.7931,191.04,190.95,10.58411353]
[1735745526049,20.0,191.02,190.91,10.58411353]
[1735745526347,20.0,191.02,190.9,10.58411353]
[1735745526548,20.0,191.02,190.93,10.58411353]
[1735745527751,20.0,191.02,190.91,23.776884]
[1735745527752,20.0,191.02,190.91,10.58411353]
[1735745527926,20.0,191.02,190.92,23.776884]
[1735745530230,20.0,191.02,190.92,10.58411353]
[1735745530430,20.0,191.02,190.93,10.58411353]
[1735745530953,20.0,191.02,190.94,34.36099753]
[1735745531325,0.7931,191.04,190.96,23.776884]
[1735745533761,0.7931,191.04,190.96,10.58411353]
[1735745534067,0.7931,191.04,190.97,10.58411353]
[1735745534257,0.7931,191.04,190.98,23.776884]
[1735745534652,6.4637,191.05,190.98,10.58411353]
[1735745535339,20.0,191.07,190.99,10.58411353]
[1735745535522,0.7931,191.08,190.99,10.58411353]
[1735745535731,0.7931,191.08,191.02,10.58411353]
[1735745539257,6.6574,191.1,191.04,23.776884]
[1735745539940,20.0,191.11,191.04,23.776884]
[1735745540341,20.0,191.11,191.04,10.58411353]
[1735745541454,20.0,191.11,191.06,23.776884]
[1735745541659,0.7931,191.13,191.06,10.58411353]
[1735745542569,0.7931,191.13,191.07,10.58411353]
[1735745543666,13.14183486,191.18,191.08,34.36099753]
[1735745543842,7.1946,191.18,191.09,10.58411353]
[1735745544659,7.1946,191.18,191.1,23.776884]
[1735745545968,7.1946,191.18,191.1,10.58411353]
[1735745548668,7.1946,191.18,191.11,10.58411353]
[1735745548871,7.1946,191.18,191.12,23.776884]
[1735745549762,0.7931,191.18,191.12,23.776884]
[1735745550667,20.0,191.2,191.12,10.58411353]
[1735745551779,20.0,191.2,191.14,23.776884]
[1735745552273,20.0,191.2,191.14,10.58411353]
[1735745553161,7.1946,191.23,191.16,23.776884]
[1735745553363,7.1946,191.23,191.16,10.58411353]
[1735745553857,0.7931,191.23,191.16,10.58411353]
[1735745554267,0.7931,191.23,191.17,10.58411353]
[1735745554465,6.4015,191.27,191.18,23.776884]
[1735745554975,6.4015,191.27,191.21,23.776884]
[1735745555152,6.4015,191.27,191.21,34.36099753]
[1735745555469,6.4015,191.27,191.21,23.776884]
[1735745556257,7.1946,191.32,191.23,23.776884]
[1735745556452,7.1946,191.32,191.23,34.36099753]
[1735745556981,7.1946,191.32,191.25,23.776884]
[1735745557982,7.1946,191.32,191.23,10.58411353]
[1735745558359,7.1946,191.32,191.25,10.58411353]
[1735745558360,0.7931,191.32,191.25,10.58411353]
[1735745558558,6.2599,191.37,191.27,10.58411353]
[1735745558763,20.0,191.34,191.27,10.58411353]
[1735745559485,0.7931,191.36,191.27,10.58411353]
[1735745559872,0.7931,191.36,191.28,10.58411353]
[1735745560561,0.7931,191.36,191.29,23.776884]
[1735745560762,6.2599,191.37,191.29,34.36099753]
[1735745560979,5.94723486,191.4,191.3,10.58411353]
[1735745561164,0.7931,191.41,191.33,23.776884]
[1735745561359,0.7931,191.41,191.35,23.776884]
[1735745561565,6.2599,191.42,191.35,23.776884]
[1735745563887,0.7931,191.45,191.36,10.58411353]
[1735745564066,0.7931,191.45,191.37,23.776884]
[1735745564581,0.7931,191.45,191.34,0.78369686]
[1735745564780,20.7931,191.45,191.32,10.58411353]
[1735745564983,20.7931,191.45,191.33,10.58411353]
[1735745565184,0.7931,191.45,191.34,34.36099753]
[1735745565379,0.7931,191.45,191.36,10.58411353]
[1735745566363,20.0,191.46,191.38,23.776884]
[1735745566675,0.7931,191.5,191.43,23.776884]
[1735745567084,2.6105,191.54,191.43,23.776884]
[1735745567085,20.0,191.52,191.43,10.58411353]
[1735745567391,20.0,191.52,191.42,34.36099753]
[1735745567974,2.6105,191.54,191.42,34.36099753]
[1735745568184,20.0,191.52,191.42,34.36099753]
[1735745568489,20.0,191.52,191.43,10.58411353]
[1735745568785,20.0,191.52,191.41,10.58411353]
[1735745569096,20.0,191.52,191.4,10.58411353]
[1735745569491,20.0,191.52,191.39,2.34658434]
[1735745569676,20.0,191.49,191.35,0.78343748]
[1735745569872,20.0,191.49,191.36,10.58411353]
[1735745570068,6.5441,191.48,191.36,23.776884]
[1735745570263,20.0,191.45,191.34,7.5742]
[1735745570482,20.0,191.43,191.3,7.5742]
[1735745570673,0.7931,191.42,191.3,12.14741353]
[1735745571189,0.7931,191.42,191.31,23.776884]
[1735745571385,0.7931,191.42,191.3,12.14741353]
[1735745571561,0.7931,191.42,191.27,0.78369468]
[1735745571766,20.0,191.38,191.28,10.58411353]